bitfinex/quotes_ETHUSD_20240902
["timestamp","ask_amount","ask_price","bid_price","bid_amount"]
[1725315531254,5.40545,2550.5,2549.9,10.41725]
[1725315531458,3.13676,2550.4,2550.3,0.12119957]
[1725315531665,2.4667,2550.2,2549.9,7.28]
[1725315532329,2.4667,2550.2,2549.9,9.71881088]
[1725315535135,2.4178,2550.4,2549.9,12.85618088]
[1725315535347,2.4178,2550.4,2549.9,15.99347088]
[1725315535777,2.4178,2550.4,2549.9,12.85610088]
[1725315536259,2.4178,2550.4,2550.0,0.12222352]
[1725315537336,5.55464,2550.4,2550.0,0.12222352]
[1725315537541,6.423774,2550.4,2550.0,0.12222352]
[1725315537742,3.13688,2550.3,2550.0,0.12222352]
[1725315539481,3.13688,2550.3,2549.8,3.13743]
[1725315539644,5.55456,2550.4,2550.1,0.12214445]
[1725315539847,5.55456,2550.4,2549.9,3.13737]
[1725315540055,5.55456,2550.4,2550.2,0.12203305]
[1725315540383,5.55456,2550.4,2550.3,0.12192165]
[1725315541003,5.55456,2550.4,2549.9,3.13737]
[1725315541188,5.55456,2550.4,2550.0,0.12225587]
[1725315541362,3.1369,2550.3,2549.7,27.52560877]
[1725315541561,3.1369,2550.3,2549.8,0.12247872]
[1725315542102,3.1369,2550.3,2549.8,3.25996872]
[1725315543605,2.4178,2550.4,2549.9,3.13736]
[1725315543906,3.13628,2550.8,2549.9,3.13736]
[1725315543907,2.2907,2550.6,2550.2,3.1369]
[1725315544203,5.42722,2550.6,2550.3,0.12195939]
[1725315544436,5.42722,2550.6,2550.1,1.73057877]
[1725315544604,5.42722,2550.6,2550.4,0.12180487]
[1725315544816,3.13627,2550.8,2550.3,1.73057877]
[1725315545141,5.45237,2550.8,2550.4,0.12180487]
[1725315545495,8.58871,2550.8,2550.4,0.12180487]
[1725315545807,3.1364,2550.7,2550.4,0.12180487]
[1725315545989,3.1364,2550.7,2550.2,3.13688]
[1725315546197,3.1364,2550.7,2550.3,0.12177075]
[1725315546501,3.1364,2550.7,2550.2,3.97778342]
[1725315546703,3.1364,2550.7,2550.4,0.12165936]
[1725315546900,3.1364,2550.7,2550.3,0.12177075]
[1725315547102,3.1364,2550.7,2550.5,0.12154798]
[1725315547428,3.1364,2550.7,2550.6,0.12143661]
[1725315547830,3.1364,2550.7,2550.2,3.97778342]
[1725315548160,3.1364,2550.7,2550.6,0.12143661]
[1725315548288,3.1364,2550.7,2550.2,3.97778342]
[1725315548487,3.1364,2550.7,2550.2,0.84090342]
[1725315548730,3.13652,2550.6,2550.2,0.84090342]
[1725315548937,3.13652,2550.6,2550.0,10.74315387]
[1725315548938,2.2632,2550.5,2550.0,10.74315387]
[1725315550444,3.13683,2550.4,2550.0,7.60598387]
[1725315550593,3.13689,2550.3,2550.0,7.28]
[1725315551295,3.13689,2550.3,2550.1,0.12038041]
[1725315552469,3.137,2550.2,2550.1,0.12038041]
[1725315552683,9.0162,2550.2,2550.1,0.12038041]
[1725315553051,3.13733,2550.0,2549.5,0.3936]
[1725315553464,2.4285,2549.8,2549.4,7.28]
[1725315554347,2.4285,2549.8,2549.4,11.29493556]
[1725315554931,2.4285,2549.8,2549.4,7.28]
[1725315557530,2.4285,2549.8,2549.4,3.13797]
[1725315559033,2.4285,2549.8,2549.5,0.12318072]
[1725315560757,2.4285,2549.8,2549.5,3.26103072]
[1725315560954,2.4285,2549.8,2549.6,3.13773]
[1725315561233,2.3972,2550.0,2549.6,3.77756407]
[1725315561438,2.3972,2550.0,2549.7,0.12296321]
[1725315564567,2.3972,2550.0,2549.6,3.13767]
[1725315565038,2.3972,2550.0,2549.8,0.12280863]
[1725315565248,2.3972,2550.0,2549.7,0.12292007]
[1725315565468,2.3972,2550.6,2549.9,2.4327972]
[1725315565652,2.3972,2550.6,2550.2,3.13698]
[1725315566170,2.3972,2550.6,2550.3,0.1222893]
[1725315566559,2.3972,2550.6,2550.2,3.13698]
[1725315566875,3.264195,2550.6,2550.3,0.1222893]
[1725315567235,3.264195,2550.6,2550.2,3.13698]
[1725315567435,3.264195,2550.6,2550.3,0.12211492]
[1725315567674,3.264195,2550.6,2550.2,3.13698]
[1725315567881,3.264195,2550.6,2550.4,0.12200354]
[1725315568179,3.264195,2550.6,2550.3,0.12199094]
[1725315568353,3.264195,2550.6,2550.5,0.12176817]
[1725315568552,6.264195,2550.6,2550.1,6.27408]
[1725315568739,5.3972,2550.6,2550.2,3.13699]
[1725315568933,2.3972,2550.6,2550.2,3.25909233]
[1725315569661,5.53379,2550.6,2550.2,0.12210233]
[1725315569861,2.3772,2550.4,2550.2,0.12210233]
[1725315570176,2.3772,2550.4,2550.3,0.12168366]
[1725315570542,2.3772,2550.4,2549.9,3.1373]
[1725315570752,2.3772,2550.4,2550.3,0.12168366]
[1725315570959,2.3772,2550.4,2550.0,3.13722]
[1725315571590,2.3772,2550.4,2550.3,0.12168366]
[1725315571968,2.3772,2550.4,2550.0,3.13722]
[1725315572153,2.3772,2550.4,2550.3,0.12172678]
[1725315572353,2.3772,2550.4,2550.0,3.13722]
[1725315572993,2.3772,2550.4,2550.1,0.12194959]
[1725315573204,5.51397,2550.4,2550.1,0.12194959]
[1725315573498,5.51397,2550.4,2549.9,6.2746]
[1725315573697,5.51397,2550.4,2550.2,0.12183818]
[1725315573871,5.51397,2550.4,2549.9,3.1373]
[1725315574051,5.51397,2550.4,2550.3,0.12169983]
[1725315574255,5.51397,2550.4,2549.9,3.1373]
[1725315574537,5.51397,2550.4,2550.3,0.12169983]
[1725315574696,5.51397,2550.4,2549.9,3.1373]
[1725315574860,5.51397,2550.4,2550.3,0.12169983]
[1725315575061,5.51397,2550.4,2549.9,3.1373]
[1725315575298,5.51397,2550.4,2550.3,0.12169983]
[1725315575474,5.51397,2550.4,2549.9,3.1373]
[1725315575674,8.6508,2550.4,2550.3,0.12169983]
[1725315575888,8.6508,2550.4,2549.9,3.1373]
[1725315576195,8.6508,2550.4,2550.3,0.12169983]
[1725315576196,5.51397,2550.4,2550.3,0.12169983]
[1725315576799,5.51397,2550.4,2549.9,3.1373]
[1725315577094,2.3772,2550.4,2550.0,3.13724]
[1725315577309,2.3772,2550.4,2550.0,3.25927405]
[1725315579419,2.3772,2550.4,2550.0,0.12203405]
[1725315581017,2.3772,2550.4,2550.0,3.25927405]
[1725315583016,2.4735,2550.6,2550.3,3.13682]
[1725315583176,2.4735,2550.6,2550.1,3.21544523]
[1725315583605,5.61003,2550.6,2550.1,3.21544523]
[1725315583813,5.61003,2550.6,2550.2,0.121822]
[1725315584017,5.41208,2550.3,2550.2,0.121822]
[1725315584321,5.41208,2550.3,2549.7,3.62907013]
[1725315584624,5.41208,2550.3,2549.8,3.13749]
[1725315584822,5.41208,2550.3,2549.6,8.09981336]
[1725315584823,5.41234,2550.1,2549.6,7.28]
[1725315584971,8.54959,2550.1,2549.9,0.12215624]
[1725315585178,8.54955,2550.1,2549.6,7.28]
[1725315585379,5.41234,2550.1,2549.6,7.28]
[1725315585797,5.41234,2550.1,2549.7,0.12237911]
[1725315587369,2.2752,2550.1,2549.7,6.27323252]
[1725315587502,3.13696,2550.3,2549.9,3.1373]
[1725315587503,2.4803,2550.3,2549.9,3.1373]
[1725315587712,2.4803,2550.3,2549.9,4.52284833]
[1725315588012,2.4803,2550.3,2550.0,0.12204482]
[1725315589749,5.61718,2550.3,2549.8,3.13749]
[1725315589909,5.61718,2550.3,2550.1,0.1219334]
[1725315590301,5.61718,2550.3,2549.8,3.13749]
[1725315592808,5.61718,2550.3,2549.9,0.36868027]
[1725315593122,5.61718,2550.3,2549.8,3.13749]
[1725315593537,5.61718,2550.3,2549.9,0.36867881]
[1725315593845,5.61718,2550.3,2549.8,3.13749]
[1725315596252,5.61718,2550.3,2549.9,0.12228564]
[1725315596456,8.75413,2550.3,2549.9,0.12228564]
[1725315598075,3.13701,2550.2,2549.9,0.12228564]
[1725315598665,3.13701,2550.2,2549.6,3.95743336]
[1725315598841,3.13701,2550.2,2549.7,4.39041717]
[1725315599166,3.13701,2550.2,2549.8,0.12239707]
[1725315600830,2.3108,2550.1,2549.8,0.12239707]
[1725315601324,3.13727,2550.0,2549.8,0.12239707]
[1725315601626,3.13727,2550.0,2549.6,0.81981336]
[1725315602026,3.13727,2550.0,2549.7,0.12267023]
[1725315605663,3.13738,2549.9,2549.7,0.12267023]
[1725315605870,2.3311,2549.9,2549.7,0.12267023]
[1725315606820,2.2701,2550.2,2549.8,3.13748]
[1725315608308,2.2701,2550.2,2550.0,3.13725]
[1725315611230,2.2701,2550.2,2550.1,0.12226766]
[1725315614704,2.3135,2550.5,2550.1,3.25939766]
[1725315614923,2.3135,2550.5,2550.3,3.13678]
[1725315615093,2.3135,2550.7,2550.4,3.13676]
[1725315615297,2.3135,2550.7,2550.2,5.34225169]
[1725315615298,2.3135,2550.7,2550.2,4.07871942]
[1725315615527,2.3135,2550.7,2550.2,3.25890606]
[1725315615733,5.44992,2550.7,2550.2,3.25890606]
[1725315622150,2.3135,2550.7,2550.3,3.13688]
[1725315622432,2.3135,2550.7,2550.3,3.91814197]
[1725315622745,2.3135,2550.7,2550.4,0.12177711]
[1725315624434,2.3135,2550.7,2550.2,3.21530737]
[1725315624630,2.3135,2550.7,2550.5,0.12166573]
[1725315624928,2.3135,2550.7,2550.2,3.13689]
[1725315624929,5.4499,2550.7,2550.6,0.12155436]
[1725315625648,5.4499,2550.7,2550.2,3.13689]
[1725315625795,5.4499,2550.7,2550.2,4.0838842]
[1725315626227,5.4499,2550.7,2550.3,0.12188849]
[1725315626723,5.4499,2550.7,2550.4,0.12157767]
[1725315627282,5.4499,2550.7,2550.2,4.0838842]
[1725315627432,5.4499,2550.7,2550.5,0.12146629]
[1725315627634,5.4499,2550.7,2550.2,3.13689]
[1725315627838,5.4499,2550.7,2550.6,0.12135492]
[1725315628049,5.4499,2550.7,2550.2,3.13689]
[1725315628348,8.565,2550.7,2550.6,0.12135492]
[1725315628496,3.13694,2550.3,2549.9,7.28]
[1725315628843,2.2922,2550.2,2549.8,3.13749]
[1725315634456,2.2922,2550.2,2549.9,3.13737]
[1725315638643,2.4503,2550.4,2549.9,7.65999534]
[1725315639564,2.4503,2550.4,2550.0,3.13724]
[1725315639756,2.4503,2550.4,2550.2,3.137]
[1725315640087,2.4235,2550.6,2550.3,0.3137]
[1725315640294,2.4235,2550.6,2550.2,3.1369]
[1725315640940,2.4235,2550.6,2550.2,4.52216206]
[1725315641359,2.4235,2550.6,2550.4,3.13675]
[1725315641848,2.3263,2551.1,2550.5,0.17084854]
[1725315642053,2.3263,2550.9,2550.5,0.17084854]
[1725315643548,2.3263,2550.9,2550.6,1.38526206]
[1725315643748,2.3263,2551.1,2550.6,1.46366741]
[1725315643985,2.3263,2551.1,2550.8,1.38526206]
[1725315644392,2.3263,2551.1,2550.9,0.17039538]
[1725315645083,2.3263,2551.1,2550.7,3.13631]
[1725315645246,2.3263,2551.1,2551.0,0.17028212]
[1725315645444,2.3263,2551.1,2550.7,7.36075454]
[1725315645765,2.3263,2551.1,2550.7,4.30282209]
[1725315645967,2.3263,2551.1,2550.8,3.30675866]
[1725315648680,2.3263,2551.1,2550.8,4.69202072]
[1725315648997,2.3263,2551.1,2550.9,0.89164453]
[1725315649203,2.3263,2551.1,2550.9,1.06131774]
[1725315652175,2.3263,2551.1,2550.9,0.16967321]
[1725315652512,2.3263,2551.1,2550.5,7.65831206]
[1725315652513,5.46224,2551.1,2550.5,7.65831206]
[1725315652723,5.46224,2551.1,2551.0,0.16944681]
[1725315652898,5.46224,2551.1,2550.6,3.13651]
[1725315653092,5.46224,2551.1,2551.0,0.16944681]
[1725315653302,5.46224,2551.1,2550.6,3.13651]
[1725315653465,2.3263,2551.1,2551.0,0.16944681]
[1725315653666,2.3749,2551.3,2550.8,1.46365958]
[1725315653867,2.3749,2551.3,2551.0,1.55475736]
[1725315654506,2.3749,2551.3,2550.8,0.07839752]
[1725315654507,2.3749,2551.3,2550.9,0.16960856]
[1725315654691,2.3749,2551.3,2551.1,0.16935511]
[1725315654894,2.3749,2551.3,2551.0,0.16946836]
[1725315655097,2.3749,2551.3,2551.2,0.16924186]
[1725315655303,2.3749,2551.3,2551.1,0.16935511]
[1725315655470,2.3749,2551.3,2551.2,0.16915567]
[1725315655871,2.3749,2551.3,2551.0,3.13602]
[1725315656071,2.3749,2551.3,2551.2,0.16915567]
[1725315656724,2.3749,2551.3,2551.0,3.92987361]
[1725315657028,2.3749,2551.3,2551.1,0.16919263]
[1725315657171,2.3749,2551.3,2550.8,6.27235]
[1725315657400,2.3749,2551.3,2551.2,0.16897703]
[1725315657745,2.925945,2551.3,2551.2,0.16897703]
[1725315658061,2.925945,2551.3,2550.8,6.27236]
[1725315658209,2.3749,2551.3,2550.8,3.13616]
[1725315658405,2.3749,2551.3,2550.6,10.41646]
[1725315658406,2.4743,2551.4,2550.6,7.28]
[1725315658591,2.4743,2551.1,2550.6,10.41641]
[1725315658792,2.4743,2551.1,2550.7,3.13631]
[1725315660027,2.4743,2551.1,2550.6,14.25302989]
[1725315660242,2.4743,2551.1,2550.6,17.38947989]
[1725315660399,2.4743,2551.1,2550.7,3.13637]
[1725315660600,2.4743,2551.1,2550.6,14.25302989]
[1725315662106,5.61022,2551.1,2550.6,11.80167206]
[1725315662334,5.61022,2551.1,2550.6,7.28]
[1725315662335,3.13603,2551.0,2550.6,7.28]
[1725315663496,2.4743,2551.1,2550.7,3.13628]
[1725315663699,2.4743,2551.1,2550.8,3.13625]
[1725315664124,2.4743,2551.1,2550.8,3.13619]
[1725315665543,2.4133,2551.6,2551.3,3.13558]
[1725315666316,2.4133,2551.6,2551.3,6.27117]
[1725315666647,2.4133,2551.6,2551.3,3.13558]
[1725315666816,2.3435,2552.0,2551.5,3.13541]
[1725315667147,5.47831,2552.0,2551.5,3.13541]
[1725315667299,5.47831,2552.0,2551.4,3.13541]
[1725315667503,5.47831,2552.0,2551.4,6.27086]
[1725315667807,5.47831,2552.0,2551.4,3.13541]
[1725315668340,5.47831,2552.0,2551.4,6.27087]
[1725315668341,3.13493,2551.9,2551.4,6.27087]
[1725315668542,3.204804,2552.0,2551.4,4.52067206]
[1725315668768,2.3435,2552.0,2551.5,3.13531]
[1725315670061,2.3435,2552.0,2551.4,3.13541]
[1725315670224,2.891323,2552.0,2551.5,3.13534]
[1725315670430,6.026143,2552.0,2551.4,6.27086]
[1725315671037,6.026143,2552.0,2551.5,3.13539]
[1725315671242,6.026143,2552.0,2551.5,3.30361265]
[1725315671862,2.3435,2552.0,2551.7,3.13509]
[1725315672170,2.3435,2552.0,2551.8,0.16793149]
[1725315672501,2.3435,2552.0,2551.5,6.27064]
[1725315672663,2.3435,2552.0,2551.9,0.16781831]
[1725315672872,2.3435,2552.0,2551.5,6.27064]
[1725315673024,2.3435,2552.0,2551.9,0.16778062]
[1725315673226,2.3435,2552.0,2551.5,7.03623021]
[1725315673428,2.3435,2552.0,2551.7,3.13509]
[1725315673883,2.3435,2552.0,2551.7,3.13507]
[1725315674179,2.3435,2552.0,2551.9,0.16778062]
[1725315674672,2.3435,2552.0,2551.8,3.13501]
[1725315674973,2.3435,2552.0,2551.9,0.16771601]
[1725315677953,2.3435,2552.0,2551.7,3.13507]
[1725315678149,2.3435,2552.0,2551.9,0.16740914]
[1725315678379,2.3435,2552.0,2551.7,3.13507]
[1725315678690,2.3435,2552.0,2551.9,0.16740914]
[1725315678886,2.3435,2552.0,2551.8,0.16752232]
[1725315679187,2.3435,2552.0,2551.9,0.16740914]
[1725315679485,2.3435,2552.0,2551.6,3.13518]
[1725315679693,2.3435,2552.0,2551.9,0.16740914]
[1725315679847,2.891319,2552.0,2551.6,3.13518]
[1725315680047,2.3435,2552.0,2551.9,0.16740914]
[1725315680291,2.3435,2552.0,2551.6,3.13518]
[1725315680480,2.3435,2552.0,2551.9,0.16740914]
[1725315680646,2.3435,2552.0,2551.6,3.13518]
[1725315680987,2.3435,2552.0,2551.5,7.28]
[1725315680988,3.682609,2552.0,2551.5,7.28]
[1725315681288,2.4974,2551.9,2551.7,0.16769474]
[1725315681464,2.4974,2551.9,2551.6,0.16780794]
[1725315681784,2.4974,2551.9,2551.7,0.16769474]
[1725315681988,2.4974,2551.9,2551.5,10.41539]
[1725315682185,2.4974,2551.9,2551.8,0.16758154]
[1725315682500,2.4974,2551.9,2551.5,3.13539]
[1725315682688,2.4974,2551.9,2551.8,0.16759769]
[1725315682894,2.4974,2551.9,2551.5,3.13539]
[1725315683550,2.4974,2551.9,2551.8,0.16759769]
[1725315683771,3.13517,2551.7,2551.2,10.80921]
[1725315683974,2.4974,2551.6,2551.2,7.28]
[1725315684173,2.4974,2551.4,2551.2,7.28]
[1725315684401,2.4974,2551.4,2551.0,3.13595]
[1725315684820,2.4974,2551.6,2551.1,4.59953548]
[1725315685523,2.4974,2551.6,2551.3,3.13564]
[1725315686172,2.4974,2551.6,2551.4,0.16817437]
[1725315688874,3.060644,2551.6,2551.4,0.16817437]
[1725315689111,2.3814,2551.5,2551.4,0.16817437]
[1725315689414,2.3814,2551.5,2551.4,0.16839511]
[1725315689710,2.3814,2551.5,2551.2,3.13575]
[1725315689916,2.3814,2551.5,2551.4,0.16841126]
[1725315690077,2.3814,2551.5,2551.3,0.16852449]
[1725315690277,2.3814,2551.5,2551.1,6.20483126]
[1725315690476,2.3814,2551.5,2551.4,0.16279755]
[1725315691032,2.3814,2551.5,2551.1,6.20484126]
[1725315691190,2.3814,2551.5,2551.4,0.16279755]
[1725315691521,2.3814,2551.5,2551.1,6.20484126]
[1725315691715,2.3814,2551.5,2551.4,0.16279755]
[1725315691899,2.3814,2551.5,2551.1,6.20484126]
[1725315692099,2.3814,2551.5,2551.4,0.16279755]
[1725315692597,2.3814,2551.5,2551.1,6.20484126]
[1725315692988,2.3814,2551.5,2551.2,0.16302402]
[1725315694279,2.3814,2551.5,2551.2,3.29878402]
[1725315694873,2.3814,2551.5,2551.3,3.13563]
[1725315695284,2.3814,2551.5,2551.4,0.16283525]
[1725315696704,2.3814,2551.5,2551.2,3.13573]
[1725315697017,2.3814,2551.5,2551.3,0.16294848]
[1725315697192,2.3814,2551.5,2551.2,3.13573]
[1725315697379,2.3814,2551.5,2551.4,0.16283525]
[1725315697580,2.3814,2551.5,2551.3,3.13564]
[1725315697806,2.3814,2551.5,2551.4,0.16283525]
[1725315698874,2.3768,2551.7,2551.4,0.16283525]
[1725315702326,3.5978159,2551.7,2551.4,0.16283525]
[1725315702876,6.7329959,2551.7,2551.4,0.16283525]
[1725315703106,5.52841,2551.5,2551.4,0.16283525]
[1725315703379,2.393,2551.4,2550.8,7.28]
[1725315703594,5.393,2551.4,2550.9,3.13605]
[1725315704243,5.393,2551.4,2550.9,6.27212]
[1725315704476,8.52861,2551.4,2550.9,3.13605]
[1725315711080,5.55306,2551.2,2550.8,7.28]
[1725315711279,5.55306,2551.2,2550.5,22.65655]
[1725315711280,2.4172,2550.9,2550.5,22.65655]
[1725315711476,2.4172,2550.9,2550.5,3.13655]
[1725315714622,5.55342,2550.9,2550.3,24.89553206]
[1725315714825,5.55342,2550.9,2550.4,3.1367]
[1725315716288,5.55342,2550.9,2550.5,0.158621]
[1725315717327,2.4172,2550.9,2550.5,0.158621]
[1725315719937,2.4172,2550.9,2550.5,3.295251]
[1725315721603,2.4172,2550.9,2550.5,0.158621]
[1725315721604,3.13627,2550.8,2550.5,0.158621]
[1725315721906,2.2776,2550.7,2550.4,3.13676]
[1725315722118,2.2776,2550.7,2550.6,0.15900665]
[1725315722603,2.2776,2550.7,2550.4,3.13676]
[1725315722803,2.2776,2550.7,2550.6,0.15900665]
[1725315723031,2.2776,2550.7,2550.4,3.13676]
[1725315723528,2.2776,2550.7,2550.6,0.15900665]
[1725315724987,2.2776,2550.9,2550.6,0.15900665]
[1725315725401,2.2776,2550.9,2550.6,3.29551665]
[1725315725601,2.2776,2550.9,2550.6,0.15900665]
[1725315726027,2.3905,2551.3,2550.8,3.13627]
[1725315726226,2.3905,2551.3,2550.9,3.13608]
[1725315726432,5.3905,2551.3,2550.9,3.29469314]
[1725315727639,2.3905,2551.3,2550.9,3.94562937]
[1725315727839,2.3905,2551.3,2550.9,4.02402584]
[1725315729063,2.3905,2551.3,2551.0,3.13598]
[1725315729346,2.3905,2551.3,2551.0,3.29435645]
[1725315729648,2.3905,2551.3,2551.1,3.13589]
[1725315730003,2.3905,2551.3,2551.1,3.29413174]
[1725315731947,3.13535,2551.6,2551.2,3.13577]
[1725315731948,2.2953,2551.6,2551.2,3.13577]
[1725315732338,2.2953,2551.6,2551.3,0.15801525]
[1725315732742,2.2953,2551.6,2551.2,3.13577]
[1725315733175,2.2953,2551.6,2551.4,0.15790202]
[1725315733375,2.2953,2551.6,2551.1,3.13589]
[1725315733569,2.2953,2551.6,2551.2,0.15812849]
[1725315734078,5.43058,2551.6,2551.2,0.15812849]
[1725315734884,2.2953,2551.6,2551.2,0.15812849]
[1725315735209,2.2953,2551.6,2551.3,3.13564]
[1725315735380,2.2953,2551.6,2551.3,3.13558]
[1725315735569,5.2953,2551.8,2551.4,3.13552]
[1725315735766,5.2953,2551.8,2551.3,3.29350941]
[1725315735961,2.2953,2551.8,2551.5,0.15765468]
[1725315736369,2.2953,2551.8,2551.4,3.2932279]
[1725315736599,2.2953,2551.8,2551.6,0.15754146]
[1725315736791,2.2953,2551.8,2551.5,0.15765468]
[1725315740736,3.13528,2551.6,2551.5,0.15765468]
[1725315741028,2.2605,2551.5,2551.0,3.13597]
[1725315745134,2.2605,2551.5,2550.7,3.13629]
[1725315745455,1.38526206,2551.7,2550.9,3.13614]
[1725315745456,2.2909,2551.3,2550.9,3.13614]
[1725315746156,2.2909,2551.3,2551.0,0.15255894]
[1725315748518,2.2909,2551.3,2551.1,3.13587]
[1725315748818,2.3058,2551.5,2551.1,0.15258997]
[1725315749225,2.3058,2551.5,2551.1,3.28845997]
[1725315749404,2.3058,2551.5,2551.1,4.07726233]
[1725315749803,3.0,2551.6,2551.4,3.1355]
[1725315750044,2.3058,2551.7,2551.5,0.15211031]
[1725315750347,2.3058,2551.7,2551.5,3.28750031]
[1725315750549,2.3058,2552.0,2551.5,3.61625034]
[1725315750758,2.3058,2552.0,2551.5,3.28750031]
[1725315751053,2.3058,2551.9,2551.5,0.15211031]
[1725315751251,3.13511,2551.8,2551.3,3.13558]
[1725315751425,2.3058,2551.7,2551.6,0.15193296]
[1725315751632,2.3058,2551.7,2551.3,3.13558]
[1725315751964,6.61085355,2551.7,2551.6,0.15193296]
[1725315752133,6.61085355,2551.7,2551.0,3.13601]
[1725315752134,2.3058,2551.4,2551.0,3.13601]
[1725315752325,2.3058,2551.4,2551.0,6.27202]
[1725315752525,2.3058,2551.4,2551.1,0.15237623]
[1725315755986,2.3058,2551.4,2551.1,3.28826623]
[1725315757393,2.3058,2551.4,2551.1,0.15237623]
[1725315760893,2.3058,2551.2,2550.8,3.13618]
[1725315761104,2.3058,2551.2,2550.9,3.13614]
[1725315761259,2.3058,2551.2,2551.0,3.13602]
[1725315764827,2.3058,2551.2,2550.9,3.13614]
[1725315765785,2.3058,2551.2,2550.8,3.13618]
[1725315768719,2.2621,2551.6,2550.9,2.3101]
[1725315768922,2.2621,2552.4,2551.6,2.3101]
[1725315769139,2.2621,2552.4,2552.0,3.13476]
[1725315769433,2.2621,2552.4,2551.9,4.59846454]
[1725315769595,2.2621,2552.4,2552.0,3.13478]
[1725315769994,2.2621,2552.7,2552.3,1.38526206]
[1725315770346,2.48831,2552.7,2552.3,1.38526206]
[1725315770634,2.2621,2552.7,2552.4,3.13422]
[1725315771992,2.2621,2552.7,2552.3,3.1344]
[1725315772592,2.2621,2552.7,2552.2,3.13447]
[1725315772809,7.17158294,2552.7,2552.0,3.13469]
[1725315773023,7.17158294,2552.7,2552.0,6.26942]
[1725315773024,3.13406,2552.6,2552.0,6.26942]
[1725315773514,3.13406,2552.6,2552.0,3.13469]
[1725315774132,3.13423,2552.5,2551.8,4.52019206]
[1725315774332,3.13423,2552.5,2551.9,0.48897283]
[1725315774938,3.13423,2552.5,2552.0,3.13478]
[1725315776342,3.13423,2552.5,2552.1,0.15027748]
[1725315776913,2.4376,2552.3,2552.1,0.15027748]
[1725315777138,2.994797,2552.3,2552.1,0.15027748]
[1725315777444,2.4376,2552.3,2551.8,3.13493]
[1725315778248,5.57211,2552.3,2551.8,3.13493]
[1725315780843,5.57211,2552.3,2551.6,11.80047206]
[1725315780844,3.13456,2552.2,2551.6,10.41521]
[1725315781010,3.13456,2552.2,2551.7,5.56186306]
[1725315783055,6.26918,2552.2,2551.7,1.041521]
[1725315783750,6.26918,2552.2,2551.6,10.41521]
[1725315783751,3.1347,2552.1,2551.6,10.41521]
[1725315783951,3.13457,2552.2,2551.7,3.13515]
[1725315785255,6.26919,2552.2,2551.7,3.13515]
[1725315785472,3.13474,2552.1,2551.6,7.28]
[1725315785620,3.13474,2552.1,2551.6,8.79940521]
[1725315786536,3.13474,2552.1,2551.6,1.51940521]
[1725315786920,3.13474,2552.1,2551.6,4.65467521]
[1725315787271,3.13457,2552.2,2551.6,4.65467521]
[1725315787272,3.13457,2552.2,2551.7,3.13516]
[1725315787425,3.13457,2552.2,2551.7,3.73914273]
[1725315788535,6.26922,2552.2,2551.7,3.73914273]
[1725315788733,3.13457,2552.2,2551.7,3.73914273]
[1725315789135,2.4833,2552.1,2551.7,3.73914273]
[1725315789460,2.4833,2552.1,2551.7,3.13516]
[1725315791137,2.4833,2552.1,2551.8,0.15110291]
[1725315791332,2.4833,2552.1,2551.7,3.13516]
[1725315791549,2.4833,2552.1,2551.9,0.15098973]
[1725315791753,2.4833,2552.1,2551.7,3.13516]
[1725315791951,5.61799,2552.1,2551.8,0.15110291]
[1725315792150,2.4833,2552.1,2551.8,0.15110291]
[1725315792353,2.4833,2552.1,2551.6,3.1352]
[1725315792540,2.4833,2552.1,2551.7,0.15121611]
[1725315795063,2.4833,2552.1,2551.7,3.28635611]
[1725315796867,3.13504,2551.8,2551.7,0.15121611]
[1725315797079,8.71648,2551.8,2551.7,0.15121611]
[1725315797263,8.71648,2551.8,2551.1,3.13582]
[1725315797264,3.13524,2551.7,2551.1,3.13582]
[1725315797632,3.13529,2551.6,2551.2,0.15184098]
[1725315798331,2.4464,2551.5,2551.2,0.15184098]
[1725315798530,2.4464,2551.5,2551.1,3.13587]
[1725315798901,2.4464,2551.5,2551.3,0.15192005]
[1725315799030,2.4464,2551.5,2551.2,0.15203329]
[1725315799360,2.4464,2551.5,2551.1,3.13582]
[1725315799361,2.4464,2551.5,2551.3,0.15192005]
[1725315799669,2.4464,2551.5,2551.1,3.90153621]
[1725315799876,2.4464,2551.5,2551.4,0.15187628]
[1725315800033,2.4464,2551.5,2551.1,3.90153621]
[1725315800541,2.4464,2551.5,2551.1,7.03736621]
[1725315800749,3.693264,2551.8,2550.8,3.78659105]
[1725315800750,2.4154,2551.9,2551.3,3.13562]
[1725315801045,2.4154,2552.1,2551.6,3.13519]
[1725315801246,2.4154,2552.1,2551.7,0.39189161]
[1725315801441,2.4154,2552.4,2551.8,1.38526206]
[1725315801642,3.13374,2552.9,2552.2,3.13452]
[1725315801872,8.68291,2552.9,2552.3,3.447852]
[1725315802062,5.54914,2552.9,2552.3,3.447852]
[1725315802372,3.13389,2552.8,2552.3,0.313452]
[1725315802678,3.13389,2552.8,2552.2,4.59813645]
[1725315802843,3.13396,2552.7,2552.2,3.21287439]
[1725315803055,3.13396,2552.7,2552.1,0.07835447]
[1725315803285,3.13396,2552.7,2551.7,2.7095]
[1725315803286,2.4154,2552.4,2551.8,0.07836064]
[1725315803584,2.4154,2552.4,2551.9,4.52011206]
[1725315803875,5.54937,2552.7,2552.0,0.07835719]
[1725315804040,5.54937,2552.7,2552.1,3.1346]
[1725315804373,5.54937,2552.7,2552.2,0.07835658]
[1725315804582,5.54937,2552.7,2552.1,3.98626044]
[1725315804874,8.6834,2552.7,2552.1,3.98626044]
[1725315805082,3.13406,2552.6,2552.1,3.98626044]
[1725315805863,8.6834,2552.7,2552.1,3.98626044]
[1725315806196,8.68339,2552.7,2552.2,0.54909472]
[1725315806874,3.13409,2552.6,2552.2,0.54909472]
[1725315807253,3.13409,2552.6,2552.2,0.15046868]
[1725315807441,3.13419,2552.5,2552.2,0.15046868]
[1725315807977,3.13419,2552.5,2552.0,0.07835804]
[1725315808175,3.13419,2552.5,2552.1,0.15059252]